[Event "*** Titled Tuesday 3|2 Blitz (Late)"]
[Site "Chess.com"]
[Date "2016.11.01"]
[Round "4"]
[White "Noukii"]
[Black "KyronGriffith"]
[Result "1/2-1/2"]
[WhiteElo "2649"]
[BlackElo "2309"]
[TimeControl "180+2"]
[EndTime "17:54:49 PDT"]
[Termination "Game drawn - insufficient material"]

1. d4 {[%clk 0:03:01.9]} 1... d5 {[%clk 0:03:00.7]} 2. c4 {[%clk 0:03:02.9]}
2... e6 {[%clk 0:03:00.9]} 3. Nc3 {[%clk 0:03:04.1]} 3... Be7 {[%clk 0:03:01.4]}
4. Nf3 {[%clk 0:03:05.7]} 4... Nf6 {[%clk 0:03:02.3]} 5. g3 {[%clk 0:03:07.6]}
5... O-O {[%clk 0:03:02.5]} 6. Bg2 {[%clk 0:03:09.3]} 6... c6 {[%clk 0:02:52.5]}
7. O-O {[%clk 0:03:09.8]} 7... Nbd7 {[%clk 0:02:50.4]} 8. Bf4 {[%clk 0:03:09]}
8... b6 {[%clk 0:02:50.7]} 9. Nd2 {[%clk 0:02:57.4]} 9... Bb7 {[%clk 0:02:48.8]}
10. e4 {[%clk 0:02:55.3]} 10... dxe4 {[%clk 0:02:37.9]} 11. Ndxe4 {[%clk
0:02:56.4]} 11... Nxe4 {[%clk 0:02:29.3]} 12. Nxe4 {[%clk 0:02:58.3]} 12... Nf6
{[%clk 0:02:29.4]} 13. Qc2 {[%clk 0:02:43.3]} 13... Nxe4 {[%clk 0:01:56.8]} 14.
Bxe4 {[%clk 0:02:45.2]} 14... h6 {[%clk 0:01:49.1]} 15. Rad1 {[%clk 0:02:44.1]}
15... Bg5 {[%clk 0:01:44.2]} 16. Be5 {[%clk 0:02:14.2]} 16... f6 {[%clk
0:01:12.2]} 17. h4 {[%clk 0:02:09.7]} 17... Bxh4 {[%clk 0:01:10.5]} 18. Bf4
{[%clk 0:02:09.7]} 18... Bg5 {[%clk 0:01:10.9]} 19. Bxg5 {[%clk 0:02:11.2]}
19... fxg5 {[%clk 0:01:01.8]} 20. c5 {[%clk 0:02:07.6]} 20... b5 {[%clk
0:01:01]} 21. Qe2 {[%clk 0:02:01.3]} 21... Qf6 {[%clk 0:00:57.9]} 22. Qe3 {[%clk
0:02:01.3]} 22... a5 {[%clk 0:00:55.8]} 23. Rfe1 {[%clk 0:01:59.4]} 23... Rad8
{[%clk 0:00:55.1]} 24. Bc2 {[%clk 0:01:59.7]} 24... Bc8 {[%clk 0:00:49.6]} 25.
Rd2 {[%clk 0:02:00.6]} 25... g6 {[%clk 0:00:43.2]} 26. Qe4 {[%clk 0:02:00.9]}
26... Kg7 {[%clk 0:00:30.2]} 27. Qxc6 {[%clk 0:01:57.4]} 27... Rxd4 {[%clk
0:00:28.9]} 28. Rde2 {[%clk 0:01:57.2]} 28... e5 {[%clk 0:00:18.2]} 29. Qc7+
{[%clk 0:01:48.8]} 29... Rd7 {[%clk 0:00:15.2]} 30. Qxe5 {[%clk 0:01:49.6]}
30... Qxe5 {[%clk 0:00:16.4]} 31. Rxe5 {[%clk 0:01:51.5]} 31... Rd2 {[%clk
0:00:17.7]} 32. R1e2 {[%clk 0:01:53.1]} 32... Rxe2 {[%clk 0:00:18.1]} 33. Rxe2
{[%clk 0:01:55]} 33... Rd8 {[%clk 0:00:17.9]} 34. Re7+ {[%clk 0:01:37.3]} 34...
Kf6 {[%clk 0:00:18.5]} 35. Rc7 {[%clk 0:01:37.9]} 35... Bf5 {[%clk 0:00:17.5]}
36. Bxf5 {[%clk 0:01:32.4]} 36... gxf5 {[%clk 0:00:18.6]} 37. Rc6+ {[%clk
0:01:34]} 37... Ke5 {[%clk 0:00:18.2]} 38. Rb6 {[%clk 0:01:33]} 38... b4 {[%clk
0:00:18.2]} 39. Rxh6 {[%clk 0:01:27]} 39... Rc8 {[%clk 0:00:19]} 40. c6 {[%clk
0:01:26]} 40... Kd5 {[%clk 0:00:18.5]} 41. Rg6 {[%clk 0:01:21.7]} 41... Rxc6
{[%clk 0:00:18.2]} 42. Rxg5 {[%clk 0:01:22.5]} 42... Ke4 {[%clk 0:00:19.6]} 43.
g4 {[%clk 0:01:21.1]} 43... fxg4 {[%clk 0:00:18.3]} 44. Rxa5 {[%clk 0:01:21.4]}
44... Rc2 {[%clk 0:00:17.3]} 45. b3 {[%clk 0:01:18.5]} 45... Kf3 {[%clk
0:00:17.2]} 46. Rf5+ {[%clk 0:01:19.7]} 46... Ke4 {[%clk 0:00:18.4]} 47. Rb5
{[%clk 0:01:19.1]} 47... Rxa2 {[%clk 0:00:17.2]} 48. Kg2 {[%clk 0:01:18.2]}
48... Rc2 {[%clk 0:00:08.1]} 49. Rxb4+ {[%clk 0:01:19.4]} 49... Kf5 {[%clk
0:00:09.5]} 50. Rc4 {[%clk 0:01:20.9]} 50... Rb2 {[%clk 0:00:10.3]} 51. b4
{[%clk 0:01:22]} 51... Rb3 {[%clk 0:00:11.5]} 52. Rc5+ {[%clk 0:01:22.8]} 52...
Kf4 {[%clk 0:00:13]} 53. b5 {[%clk 0:01:23]} 53... Ke4 {[%clk 0:00:14.2]} 54.
Kf1 {[%clk 0:01:21.9]} 54... Kf3 {[%clk 0:00:14.2]} 55. Rf5+ {[%clk 0:01:21.9]}
55... Ke4 {[%clk 0:00:15.3]} 56. Rg5 {[%clk 0:01:17.3]} 56... Kf3 {[%clk
0:00:16.1]} 57. Rf5+ {[%clk 0:00:33.7]} 57... Ke4 {[%clk 0:00:16.9]} 58. Rf8
{[%clk 0:00:35.3]} 58... Rxb5 {[%clk 0:00:17.2]} 59. Kg2 {[%clk 0:00:36.9]}
59... Rb3 {[%clk 0:00:18.1]} 60. Rf7 {[%clk 0:00:38]} 60... Ke5 {[%clk
0:00:19.1]} 61. Rg7 {[%clk 0:00:38.5]} 61... Kf5 {[%clk 0:00:20]} 62. Rg8 {[%clk
0:00:40.1]} 62... Kf4 {[%clk 0:00:20.8]} 63. Rf8+ {[%clk 0:00:40.6]} 63... Kg5
{[%clk 0:00:21.8]} 64. Rf7 {[%clk 0:00:42.3]} 64... Kg6 {[%clk 0:00:22.2]} 65.
Rf4 {[%clk 0:00:42.9]} 65... Kg5 {[%clk 0:00:23.3]} 66. Rc4 {[%clk 0:00:44.8]}
66... Kf5 {[%clk 0:00:24.4]} 67. Rd4 {[%clk 0:00:46.1]} 67... Kg5 {[%clk
0:00:25.6]} 68. Kf1 {[%clk 0:00:47.7]} 68... Kf5 {[%clk 0:00:26.4]} 69. Ke2
{[%clk 0:00:49.3]} 69... Kg5 {[%clk 0:00:26.8]} 70. Rd8 {[%clk 0:00:47.9]} 70...
Kf5 {[%clk 0:00:27.9]} 71. Rf8+ {[%clk 0:00:48.6]} 71... Kg5 {[%clk 0:00:28.8]}
72. Re8 {[%clk 0:00:49.5]} 72... Kf5 {[%clk 0:00:29.9]} 73. Re7 {[%clk
0:00:50.9]} 73... Kg5 {[%clk 0:00:30.9]} 74. Re3 {[%clk 0:00:52]} 74... Rxe3+
{[%clk 0:00:27.5]} 75. Kxe3 {[%clk 0:00:53.9]} 75... Kf5 {[%clk 0:00:21.9]} 76.
Ke2 {[%clk 0:00:55.3]} 76... Ke4 {[%clk 0:00:22.3]} 77. Kf1 {[%clk 0:00:57.2]}
77... Kf3 {[%clk 0:00:23.2]} 78. Kg1 {[%clk 0:00:59.1]} 78... g3 {[%clk
0:00:21.4]} 79. fxg3 {[%clk 0:01:01]} 79... Kxg3 {[%clk 0:00:22.4]} 1/2-1/2

[Event "*** Titled Tuesday 3|2 Blitz (Late)"]
[Site "Chess.com"]
[Date "2016.11.01"]
[Round "4"]
[White "GrigorGrigorov"]
[Black "spirals5"]
[Result "1-0"]
[WhiteElo "2575"]
[BlackElo "2264"]
[TimeControl "180+2"]
[EndTime "17:55:01 PDT"]
[Termination "GrigorGrigorov won by resignation"]

1. d4 {[%clk 0:03:02]} 1... d5 {[%clk 0:03:00.5]} 2. Bf4 {[%clk 0:03:01.4]} 2...
Nf6 {[%clk 0:03:00.8]} 3. e3 {[%clk 0:03:00.9]} 3... e6 {[%clk 0:03:01.5]} 4.
Nf3 {[%clk 0:03:00.6]} 4... Bd6 {[%clk 0:03:02.2]} 5. Bg3 {[%clk 0:03:01]} 5...
O-O {[%clk 0:03:01]} 6. c3 {[%clk 0:03:00.6]} 6... b6 {[%clk 0:02:59]} 7. Nbd2
{[%clk 0:03:02]} 7... Bb7 {[%clk 0:02:59.5]} 8. Bd3 {[%clk 0:03:02.4]} 8... Nbd7
{[%clk 0:02:59.3]} 9. Ne5 {[%clk 0:02:56.9]} 9... Bxe5 {[%clk 0:02:56]} 10. dxe5
{[%clk 0:02:56.7]} 10... Ne4 {[%clk 0:02:56.4]} 11. Qh5 {[%clk 0:02:19.6]} 11...
g6 {[%clk 0:02:54.2]} 12. Qh6 {[%clk 0:02:18.5]} 12... Qg5 {[%clk 0:02:48.6]}
13. Qxg5 {[%clk 0:02:16.8]} 13... Nxg5 {[%clk 0:02:49]} 14. f3 {[%clk
0:02:17.8]} 14... h5 {[%clk 0:02:47]} 15. h4 {[%clk 0:02:16.6]} 15... Nh7 {[%clk
0:02:47.4]} 16. Bf4 {[%clk 0:02:15.9]} 16... Nc5 {[%clk 0:02:28.1]} 17. Bc2
{[%clk 0:02:16.2]} 17... Ba6 {[%clk 0:02:28.5]} 18. O-O-O {[%clk 0:01:48.7]}
18... Nd3+ {[%clk 0:02:28.7]} 19. Bxd3 {[%clk 0:01:49.3]} 19... Bxd3 {[%clk
0:02:29.2]} 20. Nb3 {[%clk 0:01:42.5]} 20... Ba6 {[%clk 0:02:29.2]} 21. Kd2
{[%clk 0:01:27.9]} 21... c5 {[%clk 0:02:29.1]} 22. Ke1 {[%clk 0:01:24.7]} 22...
Bc4 {[%clk 0:02:25.7]} 23. Nc1 {[%clk 0:01:22.2]} 23... f5 {[%clk 0:02:21.7]}
24. exf6 {[%clk 0:01:12]} 24... Rxf6 {[%clk 0:02:18.8]} 25. b3 {[%clk
0:01:12.3]} 25... Ba6 {[%clk 0:02:18.8]} 26. Nd3 {[%clk 0:01:13.1]} 26... Bxd3
{[%clk 0:02:16.5]} 27. Rxd3 {[%clk 0:01:13.7]} 27... Re8 {[%clk 0:02:16.2]} 28.
Ke2 {[%clk 0:01:02]} 28... Rf7 {[%clk 0:02:11.8]} 29. c4 {[%clk 0:01:00.2]}
29... e5 {[%clk 0:02:08.1]} 30. Bg3 {[%clk 0:00:57.7]} 30... d4 {[%clk
0:02:08.8]} 31. b4 {[%clk 0:00:44.7]} 31... Nf6 {[%clk 0:01:58.6]} 32. bxc5
{[%clk 0:00:43]} 32... bxc5 {[%clk 0:01:59]} 33. e4 {[%clk 0:00:38.2]} 33... Rb7
{[%clk 0:01:57.9]} 34. Rhd1 {[%clk 0:00:38.7]} 34... Nd7 {[%clk 0:01:56.4]} 35.
Ra3 {[%clk 0:00:38.2]} 35... Re6 {[%clk 0:01:55.3]} 36. Rdd3 {[%clk 0:00:37]}
36... Reb6 {[%clk 0:01:53.5]} 37. Rdb3 {[%clk 0:00:37.7]} 37... Rxb3 {[%clk
0:01:53.5]} 38. axb3 {[%clk 0:00:38.6]} 38... Kf7 {[%clk 0:01:51.4]} 39. Kd3
{[%clk 0:00:39.8]} 39... Ke6 {[%clk 0:01:43.5]} 40. Kc2 {[%clk 0:00:40.4]} 40...
Nb8 {[%clk 0:01:33.4]} 41. Ra5 {[%clk 0:00:36.7]} 41... Kd6 {[%clk 0:01:30.7]}
42. f4 {[%clk 0:00:29.5]} 42... exf4 {[%clk 0:00:45.9]} 43. Bxf4+ {[%clk
0:00:30.4]} 43... Kc6 {[%clk 0:00:43.4]} 44. Bxb8 {[%clk 0:00:31]} 44... Rxb8
{[%clk 0:00:44]} 45. Ra6+ {[%clk 0:00:30.7]} 45... Kd7 {[%clk 0:00:26.8]} 46.
Rxg6 {[%clk 0:00:29.5]} 46... Rf8 {[%clk 0:00:27.1]} 47. Rg5 {[%clk 0:00:21]}
47... Rf2+ {[%clk 0:00:25.2]} 48. Kd3 {[%clk 0:00:22.2]} 48... Kd6 {[%clk
0:00:26.3]} 49. Rd5+ {[%clk 0:00:18.5]} 49... Kc6 {[%clk 0:00:26.6]} 50. Rxh5
{[%clk 0:00:18.6]} 50... Rxg2 {[%clk 0:00:26.1]} 51. Rh6+ {[%clk 0:00:20]} 51...
Kc7 {[%clk 0:00:26.5]} 52. e5 {[%clk 0:00:21]} 52... Rg3+ {[%clk 0:00:24.6]} 53.
Ke4 {[%clk 0:00:22.1]} 53... Rxb3 {[%clk 0:00:25.7]} 54. Rh7+ {[%clk 0:00:20.5]}
54... Kc6 {[%clk 0:00:26.3]} 55. Rh6+ {[%clk 0:00:21.6]} 55... Kc7 {[%clk
0:00:27]} 56. h5 {[%clk 0:00:21.6]} 56... Re3+ {[%clk 0:00:27.3]} 57. Kf4 {[%clk
0:00:22.3]} 57... Re1 {[%clk 0:00:27.5]} 58. Rd6 {[%clk 0:00:22.4]} 58... Rh1
{[%clk 0:00:22]} 59. h6 {[%clk 0:00:21.9]} 59... a5 {[%clk 0:00:22.7]} 60. Ke4
{[%clk 0:00:21.8]} 60... a4 {[%clk 0:00:23.6]} 61. Ra6 {[%clk 0:00:22.3]} 61...
a3 {[%clk 0:00:23.6]} 62. Ra7+ {[%clk 0:00:19.7]} 62... Kb6 {[%clk 0:00:24]} 63.
Rxa3 {[%clk 0:00:19.9]} 63... Rxh6 {[%clk 0:00:24.4]} 64. Kd5 {[%clk 0:00:21.5]}
64... Rh5 {[%clk 0:00:17.8]} 65. Kd6 {[%clk 0:00:20.7]} 65... Rh1 {[%clk
0:00:11.3]} 66. e6 {[%clk 0:00:20.6]} 66... Re1 {[%clk 0:00:11.7]} 67. e7 {[%clk
0:00:21.6]} 67... Re2 {[%clk 0:00:09.6]} 68. Kd7 {[%clk 0:00:22.5]} 68... Re1
{[%clk 0:00:08.2]} 69. e8=Q {[%clk 0:00:23.6]} 69... Rxe8 {[%clk 0:00:08.9]} 70.
Kxe8 {[%clk 0:00:25]} 1-0

[Event "*** Titled Tuesday 3|2 Blitz (Late)"]
[Site "Chess.com"]
[Date "2016.11.01"]
[Round "4"]
[White "Tarlev_Konstantin"]
[Black "Genghis_K"]
[Result "0-1"]
[WhiteElo "2600"]
[BlackElo "2696"]
[TimeControl "180+2"]
[EndTime "17:55:11 PDT"]
[Termination "Genghis_K won by resignation"]

1. c4 {[%clk 0:03:02]} 1... Nf6 {[%clk 0:02:56.4]} 2. Nf3 {[%clk 0:03:02.8]}
2... g6 {[%clk 0:02:56.3]} 3. g3 {[%clk 0:03:03.6]} 3... Bg7 {[%clk 0:02:58]} 4.
Bg2 {[%clk 0:03:05.3]} 4... O-O {[%clk 0:02:59.7]} 5. O-O {[%clk 0:03:07.2]}
5... d6 {[%clk 0:03:01.4]} 6. Nc3 {[%clk 0:03:06.7]} 6... Nc6 {[%clk 0:03:02.9]}
7. d4 {[%clk 0:03:07.4]} 7... Rb8 {[%clk 0:03:03.8]} 8. b3 {[%clk 0:03:06.6]}
8... a6 {[%clk 0:03:04.1]} 9. Nd5 {[%clk 0:03:06.5]} 9... e6 {[%clk 0:03:04.6]}
10. Ne3 {[%clk 0:03:05.7]} 10... b5 {[%clk 0:03:00.9]} 11. Bb2 {[%clk
0:03:06.1]} 11... bxc4 {[%clk 0:03:00.6]} 12. Nxc4 {[%clk 0:03:07.3]} 12... Bb7
{[%clk 0:02:59.1]} 13. Rc1 {[%clk 0:03:07.8]} 13... Ba8 {[%clk 0:02:55.6]} 14.
Re1 {[%clk 0:03:06.9]} 14... Ne4 {[%clk 0:02:52.2]} 15. Nfd2 {[%clk 0:03:01.7]}
15... Nxd2 {[%clk 0:02:38.3]} 16. Qxd2 {[%clk 0:03:02.3]} 16... Ne7 {[%clk
0:02:20.9]} 17. Bxa8 {[%clk 0:03:02.3]} 17... Rxa8 {[%clk 0:02:22.2]} 18. Na5
{[%clk 0:03:02.6]} 18... Qd7 {[%clk 0:02:22.9]} 19. Rc2 {[%clk 0:03:02]} 19...
f5 {[%clk 0:02:22.2]} 20. Rec1 {[%clk 0:03:02.2]} 20... Nd5 {[%clk 0:02:23.7]}
21. Nc6 {[%clk 0:02:59]} 21... Rf7 {[%clk 0:02:17.2]} 22. Qd3 {[%clk 0:02:46.6]}
22... a5 {[%clk 0:02:00.7]} 23. a3 {[%clk 0:02:38]} 23... f4 {[%clk 0:01:55.1]}
24. Qe4 {[%clk 0:01:51.9]} 24... Raf8 {[%clk 0:01:47.3]} 25. Rf1 {[%clk
0:01:44]} 25... Bh6 {[%clk 0:01:35.3]} 26. Bc1 {[%clk 0:01:41.6]} 26... Bg7
{[%clk 0:01:23]} 27. Bd2 {[%clk 0:01:39.8]} 27... f3 {[%clk 0:01:20.5]} 28. exf3
{[%clk 0:01:33.1]} 28... Rxf3 {[%clk 0:01:22.4]} 29. Bxa5 {[%clk 0:01:32.3]}
29... Rxb3 {[%clk 0:01:13.9]} 30. Bb4 {[%clk 0:01:11.3]} 30... Rbf3 {[%clk
0:01:04.6]} 31. Re1 {[%clk 0:01:09.5]} 31... R3f6 {[%clk 0:00:39.6]} 32. Ree2
{[%clk 0:00:54.1]} 32... Qf7 {[%clk 0:00:40.5]} 33. Ne5 {[%clk 0:00:42.1]} 33...
dxe5 {[%clk 0:00:38]} 34. Bxf8 {[%clk 0:00:42.8]} 34... Qxf8 {[%clk 0:00:38.1]}
35. dxe5 {[%clk 0:00:44]} 35... Rf3 {[%clk 0:00:37.3]} 36. a4 {[%clk 0:00:43.8]}
36... Ra3 {[%clk 0:00:37.3]} 37. h4 {[%clk 0:00:38.1]} 37... Ra1+ {[%clk
0:00:34.8]} 38. Kg2 {[%clk 0:00:38.4]} 38... Qa8 {[%clk 0:00:35.3]} 39. Rc4
{[%clk 0:00:33.7]} 39... Qb7 {[%clk 0:00:25.6]} 40. Kh2 {[%clk 0:00:31.7]} 40...
Bf8 {[%clk 0:00:25]} 41. h5 {[%clk 0:00:26.3]} 41... gxh5 {[%clk 0:00:24.3]} 42.
Rec2 {[%clk 0:00:20.7]} 42... Qb1 {[%clk 0:00:22.7]} 43. Qg2 {[%clk 0:00:21.6]}
43... Rxa4 {[%clk 0:00:16.7]} 44. Rxa4 {[%clk 0:00:21.3]} 44... Qxc2 {[%clk
0:00:18.2]} 45. Rh4 {[%clk 0:00:22.7]} 45... Qf5 {[%clk 0:00:19.4]} 46. Re4
{[%clk 0:00:19.4]} 46... Bg7 {[%clk 0:00:19.8]} 47. f4 {[%clk 0:00:18.6]} 47...
Qg4 {[%clk 0:00:20]} 48. Qf2 {[%clk 0:00:14.7]} 48... Bf8 {[%clk 0:00:20.7]} 49.
Ra4 {[%clk 0:00:15]} 49... Kf7 {[%clk 0:00:20.9]} 50. Ra8 {[%clk 0:00:14.1]}
50... Be7 {[%clk 0:00:22]} 51. Ra4 {[%clk 0:00:14.2]} 51... h4 {[%clk
0:00:21.4]} 52. gxh4 {[%clk 0:00:15.7]} 52... Qxh4+ {[%clk 0:00:22.7]} 53. Qxh4
{[%clk 0:00:15.2]} 53... Bxh4 {[%clk 0:00:24.5]} 54. Kh3 {[%clk 0:00:16.9]}
54... Be7 {[%clk 0:00:24.1]} 55. Kg4 {[%clk 0:00:17.7]} 55... Ne3+ {[%clk
0:00:25]} 56. Kf3 {[%clk 0:00:19.1]} 56... Nf5 {[%clk 0:00:26.6]} 57. Ra7 {[%clk
0:00:20.2]} 57... c5 {[%clk 0:00:27.5]} 58. Rc7 {[%clk 0:00:20.5]} 58... h5
{[%clk 0:00:28.6]} 59. Rc8 {[%clk 0:00:21.3]} 59... h4 {[%clk 0:00:27.3]} 60.
Kg4 {[%clk 0:00:22.5]} 60... Ne3+ {[%clk 0:00:25.6]} 61. Kh3 {[%clk 0:00:23.6]}
61... Kg6 {[%clk 0:00:25.2]} 62. Rc7 {[%clk 0:00:23.6]} 62... Bf8 {[%clk
0:00:24.9]} 63. Rc8 {[%clk 0:00:24.7]} 63... Bh6 {[%clk 0:00:24.5]} 64. Rxc5
{[%clk 0:00:21.5]} 64... Bxf4 {[%clk 0:00:24.7]} 65. Kxh4 {[%clk 0:00:22.8]}
65... Kf5 {[%clk 0:00:25.9]} 66. Rc8 {[%clk 0:00:22.4]} 66... Kxe5 {[%clk
0:00:26.1]} 67. Rc5+ {[%clk 0:00:21]} 67... Ke4 {[%clk 0:00:25.9]} 68. Kh5
{[%clk 0:00:21.3]} 68... e5 {[%clk 0:00:27]} 69. Kg6 {[%clk 0:00:22]} 69... Kf3
{[%clk 0:00:28.5]} 70. Kf6 {[%clk 0:00:23]} 70... e4 {[%clk 0:00:29.9]} 71. Ke6
{[%clk 0:00:24.3]} 71... Ng4 {[%clk 0:00:28.4]} 72. Kf5 {[%clk 0:00:25.1]} 72...
e3 {[%clk 0:00:23.9]} 73. Rc2 {[%clk 0:00:25.4]} 73... Nh6+ {[%clk 0:00:23.3]}
0-1

[Event "*** Titled Tuesday 3|2 Blitz (Late)"]
[Site "Chess.com"]
[Date "2016.11.01"]
[Round "4"]
[White "jposthuma"]
[Black "stalyansky"]
[Result "1/2-1/2"]
[WhiteElo "2175"]
[BlackElo "2208"]
[TimeControl "180+2"]
[EndTime "17:55:32 PDT"]
[Termination "Game drawn by stalemate"]

1. d4 {[%clk 0:03:02]} 1... d5 {[%clk 0:03:00.5]} 2. Nf3 {[%clk 0:03:02.7]} 2...
Nf6 {[%clk 0:03:01.7]} 3. Bf4 {[%clk 0:03:03.8]} 3... Bf5 {[%clk 0:02:45.1]} 4.
e3 {[%clk 0:03:03.5]} 4... h6 {[%clk 0:02:43.5]} 5. c4 {[%clk 0:03:03]} 5... e6
{[%clk 0:02:41.6]} 6. Nc3 {[%clk 0:03:03.5]} 6... Bd6 {[%clk 0:02:32.1]} 7. c5
{[%clk 0:02:54.5]} 7... Bxf4 {[%clk 0:02:31.5]} 8. exf4 {[%clk 0:02:56.4]} 8...
O-O {[%clk 0:02:16.6]} 9. Qb3 {[%clk 0:02:55.6]} 9... b6 {[%clk 0:02:13.5]} 10.
Qa3 {[%clk 0:01:41.6]} 10... Nc6 {[%clk 0:01:55]} 11. Bb5 {[%clk 0:01:28.2]}
11... Ne7 {[%clk 0:01:50.4]} 12. b4 {[%clk 0:01:11.5]} 12... Ne4 {[%clk
0:01:37.2]} 13. Ne5 {[%clk 0:00:42.9]} 13... a6 {[%clk 0:00:54.6]} 14. Nc6
{[%clk 0:00:39.1]} 14... Nxc6 {[%clk 0:00:49.9]} 15. Bxc6 {[%clk 0:00:40.1]}
15... Rb8 {[%clk 0:00:49]} 16. Nxe4 {[%clk 0:00:16.3]} 16... dxe4 {[%clk
0:00:47.6]} 17. Qe3 {[%clk 0:00:16.1]} 17... bxc5 {[%clk 0:00:44.9]} 18. bxc5
{[%clk 0:00:16.8]} 18... Rb4 {[%clk 0:00:34.4]} 19. Rd1 {[%clk 0:00:16.8]} 19...
Qf6 {[%clk 0:00:29.7]} 20. Bxe4 {[%clk 0:00:03.8]} 20... Bxe4 {[%clk 0:00:18.5]}
21. Qxe4 {[%clk 0:00:05.7]} 21... Rd8 {[%clk 0:00:19.3]} 22. O-O {[%clk
0:00:07.2]} 22... Rbxd4 {[%clk 0:00:18.8]} 23. Rxd4 {[%clk 0:00:09.1]} 23...
Rxd4 {[%clk 0:00:19.7]} 24. Qb7 {[%clk 0:00:10.5]} 24... Qxf4 {[%clk 0:00:17.8]}
25. Qxa6 {[%clk 0:00:09.9]} 25... Ra4 {[%clk 0:00:17.9]} 26. Qc8+ {[%clk
0:00:10.5]} 26... Kh7 {[%clk 0:00:18.7]} 27. g3 {[%clk 0:00:07.8]} 27... Qe5
{[%clk 0:00:15.7]} 28. Qd7 {[%clk 0:00:06.6]} 28... Rxa2 {[%clk 0:00:12.9]} 29.
Qxf7 {[%clk 0:00:07.4]} 29... Rc2 {[%clk 0:00:10.9]} 30. h4 {[%clk 0:00:05.2]}
30... Rxc5 {[%clk 0:00:11.5]} 31. h5 {[%clk 0:00:04.3]} 31... Qxh5 {[%clk
0:00:12]} 32. Qxe6 {[%clk 0:00:05.2]} 32... Rg5 {[%clk 0:00:11.1]} 33. Qe4+
{[%clk 0:00:05.4]} 33... Rg6 {[%clk 0:00:10.1]} 34. Rc1 {[%clk 0:00:05]} 34...
c5 {[%clk 0:00:09.2]} 35. Qc2 {[%clk 0:00:03.9]} 35... Qg5 {[%clk 0:00:09.8]}
36. Qxc5 {[%clk 0:00:03.7]} 36... Qf6 {[%clk 0:00:10.1]} 37. Qc3 {[%clk
0:00:04.3]} 37... Qf5 {[%clk 0:00:09]} 38. Qc2 {[%clk 0:00:05.3]} 38... Qd5
{[%clk 0:00:09.4]} 39. Rd1 {[%clk 0:00:06.1]} 39... Qe6 {[%clk 0:00:09]} 40. Kg2
{[%clk 0:00:04.5]} 40... Qf6 {[%clk 0:00:06.9]} 41. Rd5 {[%clk 0:00:02.6]} 41...
Kg8 {[%clk 0:00:07.5]} 42. Qc8+ {[%clk 0:00:02.1]} 42... Kh7 {[%clk 0:00:06.3]}
43. Qf5 {[%clk 0:00:03.5]} 43... Qxf5 {[%clk 0:00:07.1]} 44. Rxf5 {[%clk
0:00:05.4]} 44... Re6 {[%clk 0:00:07.5]} 45. Kh3 {[%clk 0:00:06]} 45... Kg6
{[%clk 0:00:08.8]} 46. Rf8 {[%clk 0:00:05.8]} 46... Re2 {[%clk 0:00:09.5]} 47.
f4 {[%clk 0:00:06.3]} 47... Re1 {[%clk 0:00:09.4]} 48. Ra8 {[%clk 0:00:06.8]}
48... Rh1+ {[%clk 0:00:10.2]} 49. Kg2 {[%clk 0:00:08.3]} 49... Rb1 {[%clk
0:00:11.2]} 50. Ra5 {[%clk 0:00:08.6]} 50... Rb2+ {[%clk 0:00:11.4]} 51. Kh3
{[%clk 0:00:10]} 51... Rb3 {[%clk 0:00:11.7]} 52. Kg4 {[%clk 0:00:10]} 52... Rb4
{[%clk 0:00:10.2]} 53. Ra6+ {[%clk 0:00:10.9]} 53... Kh7 {[%clk 0:00:10.5]} 54.
Re6 {[%clk 0:00:08.5]} 54... Rb5 {[%clk 0:00:11.6]} 55. Kh4 {[%clk 0:00:09.4]}
55... Rc5 {[%clk 0:00:10.3]} 56. g4 {[%clk 0:00:09.1]} 56... Rd5 {[%clk
0:00:11.2]} 57. f5 {[%clk 0:00:09.8]} 57... Rd1 {[%clk 0:00:09.2]} 58. Kg3
{[%clk 0:00:09.6]} 58... Rd2 {[%clk 0:00:10.2]} 59. Re4 {[%clk 0:00:07.4]} 59...
Rd3+ {[%clk 0:00:11.3]} 60. Kf4 {[%clk 0:00:08.6]} 60... Rc3 {[%clk 0:00:12.1]}
61. Ke5 {[%clk 0:00:09.4]} 61... Rf3 {[%clk 0:00:09.1]} 62. Ke6 {[%clk
0:00:07.6]} 62... Ra3 {[%clk 0:00:10]} 63. Kf7 {[%clk 0:00:08.4]} 63... Ra7+
{[%clk 0:00:10.8]} 64. Re7 {[%clk 0:00:06]} 64... Rxe7+ {[%clk 0:00:09.7]} 65.
Kxe7 {[%clk 0:00:07.9]} 65... Kg8 {[%clk 0:00:10.8]} 66. Ke8 {[%clk 0:00:08.5]}
66... Kh7 {[%clk 0:00:08.9]} 67. Kf7 {[%clk 0:00:09.2]} 67... Kh8 {[%clk
0:00:09.8]} 68. Kg6 {[%clk 0:00:07.1]} 68... Kg8 {[%clk 0:00:10.4]} 69. f6
{[%clk 0:00:02.6]} 69... gxf6 {[%clk 0:00:09]} 70. Kxf6 {[%clk 0:00:03.7]} 70...
h5 {[%clk 0:00:09.8]} 71. gxh5 {[%clk 0:00:03.7]} 71... Kh7 {[%clk 0:00:11.1]}
72. Kg5 {[%clk 0:00:05.6]} 72... Kh8 {[%clk 0:00:12.3]} 73. h6 {[%clk
0:00:07.5]} 73... Kh7 {[%clk 0:00:13.6]} 74. Kh5 {[%clk 0:00:09.4]} 74... Kh8
{[%clk 0:00:15]} 75. Kg6 {[%clk 0:00:11.3]} 75... Kg8 {[%clk 0:00:16.4]} 76. Kg5
{[%clk 0:00:12.1]} 76... Kh7 {[%clk 0:00:17.6]} 77. Kh5 {[%clk 0:00:13.6]} 77...
Kh8 {[%clk 0:00:19]} 78. Kg6 {[%clk 0:00:15.5]} 78... Kg8 {[%clk 0:00:20.1]} 79.
h7+ {[%clk 0:00:17.4]} 79... Kh8 {[%clk 0:00:21.3]} 80. Kh6 {[%clk 0:00:19.3]}
1/2-1/2